bitfinex/quotes_ETHUSD_20241119
["timestamp","ask_amount","ask_price","bid_price","bid_amount"]
[1732037383938,0.01,3117.3,3115.6,7.31876947]
[1732037383939,0.9924,3116.8,3115.6,7.31876947]
[1732037384114,3.20881,3116.5,3115.7,3.20952]
[1732037384496,3.20881,3116.5,3115.8,3.20943]
[1732037384691,3.20881,3116.5,3115.9,35.0]
[1732037385441,3.0,3116.5,3115.9,38.20934]
[1732037385642,3.0,3116.5,3116.0,3.14099947]
[1732037386003,3.0,3116.5,3116.1,0.9921]
[1732037386494,3.0,3116.7,3116.1,4.20122]
[1732037386807,3.0,3116.7,3116.2,0.73422195]
[1732037387707,3.20862,3116.6,3116.2,0.73422195]
[1732037388412,3.20852,3116.7,3116.2,0.73422195]
[1732037388738,3.20852,3116.7,3116.3,0.4935372]
[1732037391246,3.20889,3116.4,3116.1,0.9921]
[1732037391447,3.20903,3116.2,3116.1,0.9921]
[1732037391619,3.20902,3116.3,3116.1,4.13309947]
[1732037392020,3.20903,3116.2,3116.1,4.13309947]
[1732037392255,3.20889,3116.4,3116.1,4.13309947]
[1732037393283,3.20924,3116.0,3115.9,35.0]
[1732037394932,3.20924,3116.0,3115.5,0.9776]
[1732037394933,3.20965,3115.6,3115.5,0.9776]
[1732037395163,6.20868,3116.6,3114.9,0.9993]
[1732037395164,3.20934,3115.9,3114.9,0.9993]
[1732037395322,3.20934,3115.9,3115.0,35.0]
[1732037395323,3.20987,3115.4,3115.0,35.0]
[1732037396763,3.21016,3115.2,3115.0,35.0]
[1732037396968,3.21015,3115.2,3115.0,35.0]
[1732037397140,3.21015,3115.2,3115.1,3.14099947]
[1732037398545,3.21015,3115.2,3114.9,0.9993]
[1732037398954,3.21015,3115.2,3115.0,35.0]
[1732037399356,3.2097,3115.6,3115.0,35.0]
[1732037399573,3.20991,3115.4,3115.1,3.14099947]
[1732037399894,3.21006,3115.2,3115.1,3.14099947]
[1732037400057,2.68979288,3115.2,3114.9,0.9993]
[1732037400232,3.20999,3115.3,3115.0,35.1001997]
[1732037400433,3.20999,3115.3,3115.1,3.24119917]
[1732037400633,3.21006,3115.2,3114.9,0.9993]
[1732037400968,3.21027,3115.0,3114.9,0.9993]
[1732037401175,3.21027,3115.0,3114.9,35.10020506]
[1732037401578,3.20989,3115.4,3114.9,38.14099947]
[1732037401766,3.20966,3115.6,3115.0,1.04380622]
[1732037401962,3.20966,3115.6,3115.1,0.10020622]
[1732037402228,3.20966,3115.6,3115.2,0.42540162]
[1732037402502,3.20966,3115.6,3115.1,0.26052213]
[1732037402503,3.20977,3115.5,3115.3,0.10020622]
[1732037402661,3.20977,3115.5,3115.1,0.16031591]
[1732037402859,6.41926,3115.7,3115.2,0.10019719]
[1732037403093,3.20965,3115.6,3115.3,0.44725895]
[1732037403301,3.20982,3115.5,3115.4,0.10019564]
[1732037403477,3.20987,3115.4,3115.1,0.16031404]
[1732037403806,3.20975,3115.5,3115.2,0.10019647]
[1732037404108,3.20986,3115.4,3115.3,0.10019647]
[1732037404313,3.20986,3115.4,3115.2,0.26051051]
[1732037404314,3.20996,3115.3,3115.2,0.26051051]
[1732037404517,3.21006,3115.2,3114.9,35.0]
[1732037404699,3.21006,3115.2,3114.9,38.14099947]
[1732037404700,3.21027,3115.0,3114.9,38.14099947]
[1732037404905,3.21027,3115.0,3114.9,38.40154605]
[1732037405125,3.21021,3115.1,3114.9,38.40154605]
[1732037405280,3.21027,3115.0,3114.9,38.14099947]
[1732037405476,3.21027,3115.0,3114.9,3.40154849]
[1732037405787,3.21027,3115.0,3114.1,1.0177]
[1732037405788,3.21074,3114.6,3114.1,1.0177]
[1732037405988,3.21056,3114.8,3114.1,1.0177]
[1732037405989,3.21056,3114.8,3114.2,35.2605871]
[1732037406213,3.21056,3114.8,3114.3,3.40158657]
[1732037406426,6.42112,3114.8,3114.4,0.16036129]
[1732037406576,3.21056,3114.8,3114.4,0.2605871]
[1732037406781,3.21056,3114.8,3114.6,1.0177]
[1732037407016,3.21047,3114.8,3114.7,0.2605871]
[1732037407314,3.2103,3115.0,3114.7,0.2605871]
[1732037407491,3.2103,3115.0,3114.8,0.10022581]
[1732037407681,3.2103,3115.0,3114.9,0.10022581]
[1732037408901,3.20988,3115.4,3114.9,0.10022581]
[1732037409159,3.21001,3115.3,3115.0,0.10022581]
[1732037409472,3.20981,3115.5,3115.2,1.0401]
[1732037409620,3.20981,3115.5,3115.3,0.10022581]
[1732037409823,3.20996,3115.3,3115.2,1.0401]
[1732037410030,3.20957,3115.7,3114.9,1.0401]
[1732037410031,3.21016,3115.2,3114.9,1.0401]
[1732037410346,3.20955,3115.7,3114.4,38.55797471]
[1732037410347,3.21016,3115.1,3115.0,0.26055308]
[1732037410548,3.21016,3115.1,3115.0,0.10021272]
[1732037413287,3.21016,3115.1,3114.6,1.0401]
[1732037413438,3.21016,3115.1,3115.0,0.1002116]
[1732037413781,3.21016,3115.1,3114.7,0.26055016]
[1732037413989,3.21016,3115.1,3114.8,0.1002116]
[1732037414133,3.21016,3115.1,3114.9,0.1002116]
[1732037414333,3.21016,3115.1,3114.9,0.26055016]
[1732037414537,3.21016,3115.1,3115.0,0.1002116]
[1732037415033,3.2099,3115.4,3115.0,0.1002116]
[1732037415257,3.20996,3115.3,3115.2,0.9666]
[1732037415464,3.20996,3115.3,3115.2,1.0668116]
[1732037415782,3.20996,3115.3,3115.2,0.1002116]
[1732037416091,3.20971,3115.6,3115.2,0.1002116]
[1732037416390,3.20971,3115.6,3114.9,3.37060197]
[1732037416391,3.20971,3115.6,3115.3,0.1002116]
[1732037416686,3.20971,3115.6,3115.0,3.95800014]
[1732037416880,3.20971,3115.6,3115.1,3.37045271]
[1732037417084,3.20971,3115.6,3115.2,0.10020169]
[1732037417274,3.20977,3115.5,3115.3,0.34706544]
[1732037417478,3.20977,3115.5,3115.4,0.10020169]
[1732037420180,0.9774,3115.8,3115.0,0.74782014]
[1732037420181,3.21004,3115.3,3115.0,0.74782014]
[1732037420396,3.21006,3115.2,3115.1,0.26053044]
[1732037420555,3.21006,3115.2,3115.1,0.10020551]
[1732037422892,0.9774,3115.8,3115.1,0.10020551]
[1732037422893,3.20982,3115.5,3115.1,0.10020551]
[1732037423097,3.2096,3115.7,3115.2,0.10020551]
[1732037423251,0.9946,3115.9,3115.3,1.0243]
[1732037423456,3.20986,3115.4,3115.0,3.14099947]
[1732037423693,3.21004,3115.3,3115.1,0.9116924]
[1732037423864,3.21002,3115.3,3115.2,0.10020417]
[1732037424073,6.41966,3115.5,3115.2,0.10020417]
[1732037424272,3.20971,3115.6,3115.3,0.10020417]
[1732037424465,3.20978,3115.5,3115.4,0.10020417]
[1732037424667,6.41962,3115.5,3115.4,0.10020417]
[1732037425771,7.37612,3115.5,3115.4,0.10020417]
[1732037428706,6.41962,3115.5,3115.4,0.10020417]
[1732037430304,3.2099,3115.4,3114.9,3.21037]
[1732037430505,3.2099,3115.4,3115.0,0.418877]
[1732037430830,3.20978,3115.5,3115.1,1.0914062]
[1732037430993,3.20978,3115.5,3115.2,0.26054355]
[1732037431206,3.20993,3115.4,3115.3,0.1002062]
[1732037433820,3.21008,3115.2,3114.8,1.0147]
[1732037434173,3.20996,3115.3,3114.8,4.22516]
[1732037434287,3.20993,3115.4,3114.9,3.632886]
[1732037434490,3.20999,3115.3,3114.9,0.422516]
[1732037434731,3.20999,3115.3,3115.0,0.4647626]
[1732037434897,3.21013,3115.2,3115.0,0.4647626]
[1732037435095,3.21025,3115.1,3114.8,1.0147]
[1732037435334,3.21023,3115.1,3114.8,1.0147]
[1732037435497,3.21027,3115.0,3114.8,1.0147]
[1732037436439,3.21037,3114.9,3114.8,1.0147]
[1732037436942,3.21026,3115.1,3114.8,1.0147]
[1732037437439,3.21027,3115.0,3114.8,1.0147]
[1732037437799,3.21037,3114.9,3114.8,1.0147]
[1732037438239,3.21024,3115.1,3114.8,1.0147]
[1732037438442,3.21044,3114.9,3114.4,3.21]
[1732037438738,0.948,3115.2,3114.5,0.821]
[1732037439055,3.21045,3114.9,3114.6,0.724186]
[1732037439791,3.21049,3114.8,3114.4,3.21]
[1732037439955,3.21061,3114.7,3114.4,3.21]
[1732037440159,3.2105,3114.8,3114.4,3.21]
[1732037440355,3.21062,3114.7,3114.5,0.739275]
[1732037441101,3.21059,3114.7,3114.5,0.739275]
[1732037441311,3.21058,3114.7,3114.5,0.739275]
[1732037441616,6.42106,3114.8,3114.5,0.739275]
[1732037441775,6.42106,3114.8,3114.4,3.21]
[1732037441776,3.2105,3114.8,3114.6,0.3949275]
[1732037441976,3.21039,3114.9,3114.6,0.3949275]
[1732037442301,3.21034,3115.0,3114.6,0.3949275]
[1732037442498,3.21034,3115.0,3114.7,0.36056775]
[1732037443391,3.21038,3114.9,3114.7,0.36056775]
[1732037443557,3.21038,3114.9,3114.6,0.3949275]
[1732037443961,0.948,3115.2,3114.6,0.3949275]
[1732037444222,3.21043,3114.9,3114.6,0.3949275]
[1732037445091,6.42087,3114.9,3114.6,0.3949275]
[1732037445412,3.21048,3114.8,3114.6,0.3949275]
[1732037445779,3.21078,3114.5,3114.4,3.21]
[1732037446307,3.21058,3114.7,3114.4,3.21]
[1732037446666,3.21078,3114.5,3114.4,3.21]
[1732037447640,3.21078,3114.5,3114.3,0.9718]
[1732037448609,6.42125,3114.7,3114.3,0.9718]
[1732037448769,3.2107,3114.6,3114.3,0.9718]
[1732037448973,3.21058,3114.7,3114.3,0.9718]
[1732037449174,6.42087,3114.9,3114.4,0.418283]
[1732037449481,3.21047,3114.8,3114.3,0.9718]
[1732037449872,3.2104,3114.9,3114.3,0.9718]
[1732037450112,3.9861,3115.4,3114.3,0.9718]
[1732037450311,3.21035,3115.0,3114.4,3.21089]
[1732037450523,3.21037,3114.9,3114.5,0.418269]
[1732037450888,3.21035,3115.0,3114.6,0.9842]
[1732037452120,3.21041,3114.9,3114.6,0.9842]
[1732037452430,3.21058,3114.7,3114.6,0.9842]
[1732037452585,3.21074,3114.6,3114.2,0.9842]
[1732037452787,3.21054,3114.8,3114.2,0.9842]
[1732037452984,3.21089,3114.4,3114.3,0.919531]
[1732037453254,3.21076,3114.6,3114.2,0.9842]
[1732037453536,3.21086,3114.5,3114.2,1.58262]
[1732037453986,3.21094,3114.4,3114.2,1.58262]
[1732037454200,3.21132,3114.0,3113.8,0.9842]
[1732037455400,3.21111,3114.2,3113.8,0.9842]
[1732037455602,3.21111,3114.2,3113.9,0.41942]
[1732037456894,6.4223,3114.2,3113.9,0.41942]
[1732037457126,3.21111,3114.2,3113.9,0.41942]
[1732037457631,3.21048,3114.8,3114.1,3.21118]
[1732037457845,3.2105,3114.8,3114.5,0.46026682]
[1732037457998,3.2105,3114.8,3114.6,0.46026682]
[1732037458331,3.21032,3115.0,3114.2,1.428598]
[1732037458332,3.21032,3115.0,3114.7,0.46026682]
[1732037458545,3.21032,3115.0,3114.8,0.46022546]
[1732037459204,3.21037,3114.9,3114.8,0.46022546]
[1732037459519,3.21037,3114.9,3114.6,1.0068]
[1732037460434,3.20988,3115.4,3114.6,1.0068]
[1732037460435,3.21023,3115.1,3114.6,1.0068]
[1732037460741,3.21006,3115.2,3114.7,0.421753]
[1732037460896,3.21043,3114.9,3114.7,0.421753]
[1732037461091,3.21058,3114.7,3114.6,1.0068]
[1732037462239,3.21072,3114.6,3114.4,0.9492]
[1732037462537,3.21072,3114.6,3114.3,0.9639728]
[1732037462538,3.21072,3114.6,3114.1,0.9492]
[1732037462835,3.21123,3114.1,3113.8,0.9574]
[1732037463007,3.21134,3114.0,3113.8,0.9574]
[1732037463209,3.21106,3114.3,3113.8,4.16889]
[1732037463410,3.21081,3114.5,3113.8,4.16883]
[1732037463626,3.21102,3114.3,3113.9,0.737889]
[1732037463937,3.21126,3114.1,3113.9,0.737889]
[1732037464939,3.21126,3114.1,3113.8,0.9574]
[1732037465618,1.0354,3114.6,3113.8,0.9574]
[1732037465854,3.21139,3114.0,3113.6,1.0196]
[1732037466033,3.21126,3114.1,3113.6,1.0196]
[1732037466252,3.21132,3114.0,3113.6,1.0196]
[1732037466559,3.21122,3114.1,3113.6,1.0196]
[1732037466871,3.21152,3113.8,3113.6,1.0196]
[1732037467176,3.21142,3113.9,3113.6,1.0196]
[1732037467344,3.21152,3113.8,3113.6,1.44275]
[1732037467562,3.21152,3113.8,3113.6,1.0196]
[1732037468032,3.21159,3113.8,3113.6,1.0196]
[1732037468384,6.42273,3114.0,3113.6,1.0196]
[1732037468524,3.21142,3113.9,3113.6,1.0196]
[1732037469362,3.21156,3113.8,3113.6,1.0196]
[1732037469724,3.21133,3114.0,3113.6,1.0196]
[1732037469951,6.42271,3114.0,3113.6,1.442745]
[1732037470158,3.21141,3113.9,3113.6,1.442745]
[1732037470668,3.21152,3113.8,3113.6,1.442745]
[1732037470830,3.21161,3113.7,3113.6,1.0196]
[1732037471620,3.21141,3113.9,3113.6,1.0196]
[1732037472659,3.21157,3113.8,3113.6,1.0196]
[1732037473145,3.21182,3113.5,3113.2,0.9991]
[1732037473961,3.21179,3113.6,3113.2,0.9991]
[1732037474169,3.2119,3113.5,3113.0,4.153227]
[1732037474367,3.2119,3113.5,3113.0,5.189527]
[1732037474669,3.21223,3113.1,3113.0,5.189527]
[1732037474960,3.21223,3113.1,3112.7,1.0363]
[1732037474961,3.21245,3112.9,3112.7,1.0363]
[1732037475568,3.21212,3113.2,3112.7,1.0363]
[1732037475860,6.42433,3113.2,3112.7,1.0363]
[1732037476064,3.21212,3113.2,3113.1,0.46045599]
[1732037476535,3.21223,3113.1,3113.0,0.46045599]
[1732037476863,3.21227,3113.1,3112.4,3.21288]
[1732037477039,3.21227,3113.1,3112.9,0.45932391]
[1732037477567,3.21233,3113.0,3112.9,0.45932391]
[1732037477739,3.21229,3113.1,3112.9,0.45932391]
[1732037478274,3.21207,3113.3,3112.9,0.45906765]
[1732037478433,3.21219,3113.2,3112.9,0.45906765]
[1732037478632,3.21233,3113.0,3112.9,0.45906765]
[1732037478934,3.21243,3112.9,3112.8,0.45906765]
[1732037479141,6.42475,3113.0,3112.4,4.20449]
[1732037479339,3.21216,3113.2,3112.8,0.45884185]
[1732037479660,3.2123,3113.1,3112.9,0.45884185]
[1732037480467,3.21209,3113.3,3112.9,1.43184185]
[1732037480623,3.21224,3113.1,3112.9,0.973]
[1732037481022,6.42455,3113.1,3112.8,0.45884185]
[1732037481224,3.21242,3113.0,3112.8,0.45884185]
[1732037481656,3.21225,3113.1,3112.8,0.45884185]
[1732037481851,3.21216,3113.2,3112.8,0.45850154]
[1732037482039,3.21235,3113.0,3112.8,0.45850154]
[1732037482630,6.42476,3113.0,3112.7,1.41840154]
[1732037482852,3.21235,3113.0,3112.8,35.0]
[1732037483048,0.9757,3113.5,3112.8,38.14099947]
[1732037483249,3.21192,3113.4,3112.9,0.45850154]
[1732037483469,0.9757,3113.5,3112.8,3.14099947]
[1732037483671,0.9498,3113.9,3113.1,1.4736442]
[1732037483965,3.21196,3113.4,3113.2,35.0]
[1732037484121,3.21196,3113.4,3113.3,3.14099947]
[1732037484321,0.9498,3113.9,3113.3,3.14099947]
[1732037484525,3.21134,3114.0,3113.5,3.21181]
[1732037484723,0.9644,3114.2,3113.5,0.4584442]
[1732037484964,3.21157,3113.8,3113.6,35.0]
[1732037485185,3.21157,3113.8,3113.7,3.14099947]
[1732037487741,3.21161,3113.7,3113.6,35.0]
[1732037488084,3.21157,3113.8,3113.6,35.0]
[1732037488641,3.21157,3113.8,3113.5,0.4584442]
[1732037488842,3.21135,3114.0,3113.5,0.4584442]
[1732037488843,3.21143,3113.9,3113.5,0.4584442]
[1732037489080,3.21135,3114.0,3113.5,0.46542542]
[1732037489309,3.21135,3114.0,3113.7,0.45836574]
[1732037489779,4.17553,3114.2,3113.8,0.45836574]
[1732037489990,3.21094,3114.4,3113.8,1.41896574]
[1732037490284,3.21078,3114.5,3114.1,0.45836574]
[1732037490495,3.21064,3114.7,3114.1,3.66955574]
[1732037490803,3.21027,3115.0,3114.4,1.0194]
[1732037490944,3.21014,3115.2,3114.6,3.21065]
[1732037491144,0.9611,3115.4,3114.8,4.22982]
[1732037491384,3.21007,3115.2,3114.9,0.45836574]
[1732037491686,3.21007,3115.2,3115.0,0.45836574]
[1732037491880,3.20983,3115.5,3114.8,1.0194]
[1732037491881,3.20983,3115.5,3115.1,0.45836574]
[1732037492087,3.20996,3115.3,3115.1,0.45836574]
[1732037492255,3.21016,3115.1,3115.0,0.45836574]
[1732037492461,3.21016,3115.1,3114.8,1.0194]
[1732037492462,3.21016,3115.1,3114.8,1.47690076]
[1732037492771,3.21016,3115.1,3114.9,35.0]
[1732037493174,3.20996,3115.3,3114.9,35.0]
[1732037493387,3.20978,3115.5,3114.9,38.66786076]
[1732037493545,3.20978,3115.5,3115.0,3.21026]
[1732037493745,3.20978,3115.5,3115.0,3.66776076]
[1732037493946,3.20958,3115.7,3115.1,3.21008]
[1732037494180,6.41879,3115.9,3115.2,4.21134]
[1732037494482,3.0,3115.8,3115.3,38.20993]
[1732037494688,3.20918,3116.1,3115.4,3.20985]
[1732037494864,3.20934,3116.0,3115.4,3.66735076]
[1732037495063,3.20935,3115.9,3115.3,3.59850023]
[1732037495252,3.20935,3115.9,3115.2,9.66880076]
[1732037495450,3.20918,3116.1,3115.4,3.66734076]
[1732037495875,3.20924,3116.0,3115.5,0.45750076]
[1732037496072,3.20942,3115.9,3115.5,0.45750076]
[1732037496279,3.20942,3115.9,3115.3,3.66744076]
[1732037496484,3.20942,3115.9,3115.4,35.45750076]
[1732037496893,3.20942,3115.9,3115.4,38.66735076]
[1732037497602,3.20942,3115.9,3115.4,35.45750076]
[1732037498268,3.20942,3115.9,3115.4,35.0]
[1732037498467,3.20942,3115.9,3115.4,38.20984]
[1732037498803,3.20942,3115.9,3115.4,35.0]
[1732037499372,3.0,3116.0,3115.4,35.0]
[1732037499576,3.0,3116.0,3115.5,3.20973]
[1732037500012,3.0,3116.0,3115.6,1.0275]
[1732037500221,3.20918,3116.1,3115.6,1.0275]
[1732037500377,3.20924,3116.0,3115.6,1.0275]
[1732037500721,3.20917,3116.1,3115.6,1.0275]
[1732037501075,3.20917,3116.1,3115.7,35.0]
[1732037501271,3.20898,3116.3,3115.7,35.0]
[1732037501595,3.20898,3116.3,3115.8,3.20943]
[1732037501815,3.20899,3116.3,3115.7,6.35054947]
[1732037501991,3.20899,3116.3,3115.7,3.20955]
[1732037502189,3.20899,3116.3,3115.9,35.0]
[1732037502678,3.20904,3116.2,3115.9,35.0]
[1732037503123,6.41704,3116.7,3115.9,35.0]
[1732037503299,3.20912,3116.2,3115.9,35.0]
[1732037503636,3.20895,3116.3,3115.9,35.0]
[1732037504149,3.20917,3116.1,3115.9,35.0]
[1732037504298,3.20868,3116.6,3115.9,35.0]
[1732037504496,3.20919,3116.1,3115.9,35.0]
[1732037504726,3.20924,3116.0,3115.9,35.0]
[1732037505828,3.2095,3115.8,3115.6,1.0275]
[1732037506149,3.2095,3115.8,3115.3,4.008]
[1732037506358,3.20966,3115.6,3115.4,35.86643294]
[1732037506638,3.20959,3115.7,3115.4,35.86643294]
[1732037507201,3.20942,3115.9,3115.5,3.14099947]
[1732037507439,3.20929,3116.0,3115.6,0.9708]
[1732037507736,3.20909,3116.2,3115.7,0.41117995]
[1732037507737,3.2092,3116.1,3115.7,0.41117995]
[1732037508800,3.2092,3116.1,3115.8,35.0]
[1732037508997,3.20924,3116.0,3115.8,35.0]
[1732037509425,3.20903,3116.2,3115.8,38.14099947]
[1732037509636,6.41775,3116.4,3115.8,41.35042947]
[1732037509815,6.41775,3116.4,3116.0,0.9852]
[1732037510016,3.20894,3116.3,3116.0,0.9852]
[1732037510338,3.20886,3116.4,3116.0,0.9852]
[1732037510511,6.41776,3116.4,3116.1,35.0]
[1732037510852,3.20894,3116.3,3116.1,35.0]
[1732037511008,3.20886,3116.4,3116.1,38.14099947]
[1732037511850,3.20867,3116.6,3116.1,38.14099947]
[1732037512344,3.20867,3116.6,3116.1,38.59502487]
[1732037512652,3.20883,3116.4,3116.2,0.4540254]
[1732037512858,3.20883,3116.4,3116.1,38.59502487]
[1732037513311,3.20883,3116.4,3116.2,0.45484475]
[1732037514241,3.20883,3116.4,3116.3,0.45484475]
[1732037514758,3.20883,3116.4,3116.2,1.32127769]
[1732037514956,3.20893,3116.3,3116.2,0.45484475]
[1732037515248,1.038,3117.1,3116.3,1.0641]
[1732037515652,3.20831,3116.9,3116.4,3.2088]
[1732037516026,3.20843,3116.8,3116.3,4.27301]
[1732037516221,3.20883,3116.4,3116.3,1.0641]
[1732037516423,3.20837,3116.9,3116.0,1.0366]
[1732037516653,3.20837,3116.9,3116.2,0.4556249]
[1732037516864,3.20869,3116.6,3116.2,0.45560988]
[1732037517070,3.20883,3116.4,3116.3,0.45560988]
[1732037517638,3.20893,3116.3,3116.2,0.45560988]
[1732037518375,3.20913,3116.1,3116.0,36.0366]
[1732037518574,3.20913,3116.1,3116.0,39.17759947]
[1732037520240,3.20913,3116.1,3116.0,4.17759947]
[1732037520432,3.20913,3116.1,3116.0,1.0366]
[1732037520632,3.20913,3116.1,3116.0,36.0366]
[1732037520832,3.20903,3116.2,3116.0,36.0366]
[1732037521236,3.20913,3116.1,3116.0,36.0366]
[1732037521436,3.20913,3116.1,3116.0,36.63185716]
[1732037521872,3.20913,3116.1,3116.0,36.0366]
[1732037522073,3.20913,3116.1,3116.0,39.77291608]
[1732037522685,3.20894,3116.3,3116.0,39.77291608]
[1732037522686,3.20904,3116.2,3116.0,39.77291608]
[1732037522855,3.20904,3116.2,3116.1,0.59531661]
[1732037524047,3.20913,3116.1,3116.0,1.0366]
[1732037524236,3.20913,3116.1,3116.0,36.0366]
[1732037524445,3.20913,3116.1,3116.0,36.63191661]
[1732037525998,3.20913,3116.1,3116.0,35.59531661]
[1732037526879,3.20903,3116.2,3116.0,0.59531661]
[1732037527091,3.20861,3116.7,3115.8,7.41622]
[1732037527290,3.20883,3116.4,3116.0,1.0043]
[1732037527468,3.20883,3116.4,3116.1,3.14099947]
[1732037527876,3.20883,3116.4,3116.0,1.0043]
[1732037527877,3.20885,3116.4,3116.0,1.0043]
[1732037528393,3.20885,3116.4,3116.1,35.0]
[1732037528553,3.20893,3116.3,3116.1,35.0]
[1732037528896,3.20893,3116.3,3116.2,0.59597354]
[1732037529094,3.20885,3116.4,3116.2,3.14099947]
[1732037529252,3.20864,3116.6,3116.2,3.14099947]
[1732037529457,3.20888,3116.4,3116.0,1.0043]
[1732037529793,3.20867,3116.6,3116.1,38.20912]
[1732037530105,3.20847,3116.8,3116.2,4.17729947]
[1732037530106,6.41698,3116.8,3116.2,4.17729947]
[1732037530264,3.20852,3116.7,3116.2,7.38630947]
[1732037530591,4.2306,3117.2,3117.1,8.78]
[1732037530896,3.208,3117.2,3117.1,0.878]
[1732037531058,3.20826,3117.0,3116.8,1.0363]
[1732037532354,6.41654,3117.0,3116.8,1.0363]
[1732037532554,3.20826,3117.0,3116.8,1.0363]
[1732037533578,3.20831,3116.9,3116.8,1.0363]
[1732037533770,3.20811,3117.1,3116.1,1.0063]
[1732037534013,3.20902,3116.3,3116.1,1.0063]
[1732037534757,3.20902,3116.3,3115.9,0.42068]
[1732037534963,3.20901,3116.3,3115.9,0.42068]
[1732037535161,3.20872,3116.6,3116.0,4.25318]
[1732037535361,3.01,3117.4,3116.1,1.0181]
[1732037535599,3.20883,3116.4,3116.1,1.0181]
[1732037536195,3.2088,3116.5,3116.1,1.0181]
[1732037536399,3.20864,3116.6,3116.1,1.0181]
[1732037536601,3.20882,3116.5,3116.2,0.9693768]
[1732037536778,6.41764,3116.5,3116.2,0.9693768]
[1732037536977,3.20882,3116.5,3116.2,0.9693768]
[1732037537182,6.41764,3116.5,3116.2,0.9693768]
[1732037537378,3.20893,3116.3,3116.2,0.9693768]
[1732037537904,3.20893,3116.3,3116.1,1.0181]
[1732037538206,3.20873,3116.5,3116.1,1.0181]
[1732037538511,3.20914,3116.1,3115.9,0.9946]
[1732037538664,3.20914,3116.1,3115.9,1.41406]
[1732037538868,3.20903,3116.2,3115.9,1.41406]
[1732037539200,3.20872,3116.5,3115.9,1.41406]
[1732037539419,3.20872,3116.5,3116.0,0.461406]
[1732037540316,3.20903,3116.2,3116.0,0.461406]
[1732037540464,3.20903,3116.2,3115.9,0.9946]
[1732037540465,3.20924,3116.0,3115.9,0.9946]
[1732037540691,3.20934,3115.9,3115.8,3.2]
[1732037541096,4.20108,3116.1,3115.5,0.9946]
[1732037541322,3.20926,3116.0,3115.5,0.9946]
[1732037541597,3.20926,3116.0,3115.6,0.420438]
[1732037541598,3.20925,3116.0,3115.6,0.420438]
[1732037541935,4.20089,3116.3,3115.5,4.20429]
[1732037542131,4.20089,3116.3,3115.7,3.20955]
[1732037542132,3.20899,3116.3,3115.7,3.20955]
[1732037542295,3.20899,3116.3,3115.9,0.9731]
[1732037542495,3.20878,3116.5,3115.9,4.18242]
[1732037542746,3.20889,3116.4,3115.9,4.18238]
[1732037543052,3.20859,3116.7,3116.1,3.2091]
[1732037543192,3.20859,3116.7,3116.0,0.4503335]
[1732037543193,3.20859,3116.7,3116.6,0.45823026]
[1732037543807,3.20859,3116.7,3116.1,3.20911]
[1732037544007,6.4172,3116.7,3116.2,0.36594435]
[1732037544215,6.4172,3116.7,3116.6,0.45814826]
[1732037544747,3.20862,3116.6,3116.2,0.36594435]
[1732037544943,3.20862,3116.6,3116.0,3.6595035]
[1732037544944,3.20862,3116.6,3116.0,0.4503335]
[1732037545115,3.20896,3116.3,3116.0,0.4503335]
[1732037545312,3.20896,3116.3,3115.9,0.9731]
[1732037545625,3.20909,3116.2,3115.9,0.9731]
[1732037546040,3.20924,3116.0,3115.9,0.9731]
[1732037546199,3.20924,3116.0,3115.7,1.0036]
[1732037546399,3.20907,3116.2,3115.7,1.0036]
[1732037546614,3.20907,3116.2,3116.1,0.45847723]
[1732037547030,3.20926,3116.0,3115.7,1.0036]
[1732037547401,3.20907,3116.2,3115.7,1.0036]
[1732037547402,3.20935,3115.9,3115.7,1.0036]
[1732037548110,3.20926,3116.0,3115.7,1.0036]
[1732037548531,3.20934,3115.9,3115.7,1.0036]
[1732037549257,3.20934,3115.9,3115.4,0.97]
[1732037549404,3.20934,3115.9,3115.4,1.77]
[1732037549607,3.2092,3116.1,3115.4,1.77]
[1732037549812,3.2092,3116.1,3116.0,0.45826684]
[1732037550510,4.20576,3116.3,3116.0,0.45826684]
[1732037550812,3.20905,3116.2,3116.1,0.45826684]
[1732037551739,3.20883,3116.4,3116.1,0.45826684]
[1732037551976,6.41775,3116.4,3116.1,0.92694052]
[1732037552124,3.20883,3116.4,3116.3,0.45826684]
[1732037552321,3.20883,3116.4,3115.9,4.22853]
[1732037552322,3.20883,3116.4,3115.9,1.0192]
[1732037552509,3.20894,3116.3,3115.9,1.0192]
[1732037552710,3.20894,3116.3,3116.2,0.45821319]
[1732037552923,4.26969,3116.6,3116.2,0.45821319]
[1732037553124,3.20893,3116.3,3116.2,0.45821319]
[1732037554422,3.14684192,3116.2,3116.1,0.45821319]
[1732037556345,3.14684192,3116.2,3116.0,0.45821319]
[1732037556659,3.20893,3116.3,3116.0,0.45821319]
[1732037556861,3.0,3116.2,3116.1,0.45821319]
[1732037557163,3.20986,3115.4,3115.3,0.45821319]
[1732037557334,3.20986,3115.4,3115.2,0.45837315]
[1732037557548,3.21004,3115.3,3115.1,0.45837315]
[1732037557732,3.21006,3115.2,3114.9,1.0115]
[1732037557937,0.9753,3115.6,3114.9,1.0115]
[1732037558133,3.21016,3115.2,3114.9,1.0115]
[1732037558323,3.20987,3115.4,3115.1,0.45783097]
[1732037558658,6.41944,3115.6,3115.1,0.45783097]
[1732037558869,3.2097,3115.6,3115.3,0.45783097]
[1732037559362,3.20976,3115.5,3115.4,0.45783097]
[1732037559566,3.20971,3115.6,3115.4,0.45783097]
[1732037560265,3.20949,3115.8,3115.4,1.49243097]
[1732037560424,3.20928,3116.0,3115.6,0.45783097]
[1732037560625,3.20928,3116.0,3115.4,4.24439]
[1732037560831,3.20928,3116.0,3115.7,0.45744665]
[1732037561033,3.20928,3116.0,3115.5,0.745431]